[Event "Titled Tuesday Blitz April 18 Early 2023"]
[White "rionelG"]
[Black "Fernandez Barrera, Victor"]
[BlackFideId "2261529"]
[WhiteElo "2195"]
[BlackElo "2211"]
[Result "1/2-1/2"]
[Round "07"]
[TimeControl "180+2"]
[Date "2023.04.18"]
[WhiteClock "0:00:16"]
[BlackClock "0:01:29"]

1. e4 {[%clk 0:03:00]}  e6 {[%clk 0:02:56]} 2. d3 {[%clk 0:03:00]}  d5 {[%clk 0:02:55]} 3. Nd2 {[%clk 0:03:01]}  g6 {[%clk 0:02:55]} 4. g3 {[%clk 0:03:01]}  Bg7 {[%clk 0:02:55]} 5. Bg2 {[%clk 0:03:02]}  Ne7 {[%clk 0:02:55]} 6. Ngf3 {[%clk 0:03:02]}  O-O {[%clk 0:02:56]} 7. O-O {[%clk 0:03:03]}  c5 {[%clk 0:02:57]} 8. Re1 {[%clk 0:03:03]}  Nbc6 {[%clk 0:02:57]} 9. Nf1 {[%clk 0:02:59]}  b5 {[%clk 0:02:58]} 10. e5 {[%clk 0:02:59]}  a5 {[%clk 0:02:57]} 11. h4 {[%clk 0:02:59]}  a4 {[%clk 0:02:58]} 12. a3 {[%clk 0:02:59]}  b4 {[%clk 0:02:58]} 13. N1h2 {[%clk 0:02:58]}  bxa3 {[%clk 0:02:57]} 14. bxa3 {[%clk 0:02:57]}  Ba6 {[%clk 0:02:56]} 15. Ng4 {[%clk 0:02:56]}  Nf5 {[%clk 0:02:56]} 16. Bg5 {[%clk 0:02:56]}  Qc7 {[%clk 0:02:52]} 17. Qd2 {[%clk 0:02:55]}  Ncd4 {[%clk 0:02:50]} 18. Bf6 {[%clk 0:02:33]}  Nxf3+ {[%clk 0:02:36]} 19. Bxf3 {[%clk 0:02:32]}  h5 {[%clk 0:02:37]} 20. Ne3 {[%clk 0:02:22]}  Nd4 {[%clk 0:02:35]} 21. Bg2 {[%clk 0:02:17]}  Bh6 {[%clk 0:02:35]} 22. Bg5 {[%clk 0:02:06]}  Bxg5 {[%clk 0:02:32]} 23. hxg5 {[%clk 0:02:07]}  Bb7 {[%clk 0:02:24]} 24. f4 {[%clk 0:01:55]}  Qa5 {[%clk 0:01:51]} 25. Qxa5 {[%clk 0:01:35]}  Rxa5 {[%clk 0:01:37]} 26. Rab1 {[%clk 0:01:35]}  Bc6 {[%clk 0:01:37]} 27. Rb6 {[%clk 0:01:26]}  Rb5 {[%clk 0:01:37]} 28. Rb1 {[%clk 0:01:25]}  Rxb6 {[%clk 0:01:37]} 29. Rxb6 {[%clk 0:01:25]}  Rc8 {[%clk 0:01:38]} 30. c4 {[%clk 0:01:21]}  dxc4 {[%clk 0:01:37]} 31. Nxc4 {[%clk 0:01:09]}  Bxg2 {[%clk 0:01:36]} 32. Kxg2 {[%clk 0:01:08]}  Nc2 {[%clk 0:01:32]} 33. Kf2 {[%clk 0:01:05]}  Rd8 {[%clk 0:01:29]} 34. Ke2 {[%clk 0:00:53]}  Nd4+ {[%clk 0:01:28]} 35. Kd2 {[%clk 0:00:49]}  Nf5 {[%clk 0:01:28]} 36. Ra6 {[%clk 0:00:43]}  Nxg3 {[%clk 0:01:27]} 37. Rxa4 {[%clk 0:00:43]}  h4 {[%clk 0:01:28]} 38. Ne3 {[%clk 0:00:40]}  h3 {[%clk 0:01:28]} 39. Ng4 {[%clk 0:00:40]}  Nf1+ {[%clk 0:01:18]} 40. Ke2 {[%clk 0:00:28]}  h2 {[%clk 0:01:18]} 41. Nf2 {[%clk 0:00:28]}  Ng3+ {[%clk 0:01:17]} 42. Kf3 {[%clk 0:00:26]}  h1=Q+ {[%clk 0:01:17]} 43. Nxh1 {[%clk 0:00:25]}  Nxh1 {[%clk 0:01:18]} 44. Kg2 {[%clk 0:00:26]}  Rxd3 {[%clk 0:01:17]} 45. Kxh1 {[%clk 0:00:26]}  Rc3 {[%clk 0:01:14]} 46. Kg2 {[%clk 0:00:26]}  c4 {[%clk 0:01:15]} 47. Ra8+ {[%clk 0:00:24]}  Kg7 {[%clk 0:01:14]} 48. Rc8 {[%clk 0:00:24]}  Rc1 {[%clk 0:01:14]} 49. a4 {[%clk 0:00:23]}  c3 {[%clk 0:01:15]} 50. a5 {[%clk 0:00:24]}  c2 {[%clk 0:01:13]} 51. a6 {[%clk 0:00:23]}  Ra1 {[%clk 0:01:13]} 52. Rxc2 {[%clk 0:00:23]}  Rxa6 {[%clk 0:01:14]} 53. Kf3 {[%clk 0:00:22]}  Kf8 {[%clk 0:01:14]} 54. Rc7 {[%clk 0:00:22]}  Ke8 {[%clk 0:01:15]} 55. Rb7 {[%clk 0:00:22]}  Ra3+ {[%clk 0:01:14]} 56. Kg4 {[%clk 0:00:22]}  Ra1 {[%clk 0:01:14]} 57. Rc7 {[%clk 0:00:22]}  Rf1 {[%clk 0:01:14]} 58. Rb7 {[%clk 0:00:21]}  Rd1 {[%clk 0:01:14]} 59. Rb8+ {[%clk 0:00:21]}  Ke7 {[%clk 0:01:14]} 60. Rb7+ {[%clk 0:00:22]}  Rd7 {[%clk 0:01:14]} 61. Rb8 {[%clk 0:00:21]}  Ra7 {[%clk 0:01:14]} 62. Rb6 {[%clk 0:00:21]}  Kd7 {[%clk 0:01:14]} 63. Rb8 {[%clk 0:00:20]}  Kc6 {[%clk 0:01:13]} 64. Rd8 {[%clk 0:00:20]}  Rd7 {[%clk 0:01:13]} 65. Ra8 {[%clk 0:00:18]}  Kd5 {[%clk 0:01:13]} 66. Ra1 {[%clk 0:00:18]}  Ke4 {[%clk 0:01:13]} 67. Re1+ {[%clk 0:00:17]}  Kd5 {[%clk 0:01:12]} 68. Rd1+ {[%clk 0:00:18]}  Kc6 {[%clk 0:01:13]} 69. Rc1+ {[%clk 0:00:19]}  Kb5 {[%clk 0:01:13]} 70. Rb1+ {[%clk 0:00:19]}  Kc4 {[%clk 0:01:13]} 71. Rc1+ {[%clk 0:00:20]}  Kb3 {[%clk 0:01:14]} 72. Rc8 {[%clk 0:00:18]}  Ra7 {[%clk 0:01:12]} 73. Rc6 {[%clk 0:00:17]}  Kb4 {[%clk 0:01:11]} 74. Rc8 {[%clk 0:00:17]}  Kb5 {[%clk 0:01:11]} 75. Rc1 {[%clk 0:00:18]}  Kb6 {[%clk 0:01:10]} 76. Rc8 {[%clk 0:00:17]}  Ra1 {[%clk 0:01:08]} 77. Rf8 {[%clk 0:00:14]}  Ra7 {[%clk 0:01:08]} 78. Rc8 {[%clk 0:00:14]}  Rd7 {[%clk 0:01:07]} 79. Rc1 {[%clk 0:00:13]}  Rc7 {[%clk 0:01:07]} 80. Rb1+ {[%clk 0:00:13]}  Kc6 {[%clk 0:01:08]} 81. Rc1+ {[%clk 0:00:13]}  Kd7 {[%clk 0:01:08]} 82. Rd1+ {[%clk 0:00:14]}  Ke7 {[%clk 0:01:09]} 83. Rb1 {[%clk 0:00:13]}  Ra7 {[%clk 0:01:09]} 84. Rb6 {[%clk 0:00:13]}  Kd7 {[%clk 0:01:10]} 85. Rb5 {[%clk 0:00:14]}  Kc6 {[%clk 0:01:10]} 86. Rb8 {[%clk 0:00:14]}  Kd5 {[%clk 0:01:09]} 87. Rb1 {[%clk 0:00:14]}  Ra4 {[%clk 0:01:09]} 88. Rb7 {[%clk 0:00:14]}  Ra1 {[%clk 0:01:08]} 89. Rxf7 {[%clk 0:00:13]}  Ke4 {[%clk 0:01:08]} 90. Rf6 {[%clk 0:00:13]}  Rg1+ {[%clk 0:01:08]} 91. Kh3 {[%clk 0:00:12]}  Kf3 {[%clk 0:01:09]} 92. Kh2 {[%clk 0:00:12]}  Rg2+ {[%clk 0:01:08]} 93. Kh1 {[%clk 0:00:11]}  Re2 {[%clk 0:01:06]} 94. Kg1 {[%clk 0:00:07]}  Ra2 {[%clk 0:01:06]} 95. Rxg6 {[%clk 0:00:06]}  Kg3 {[%clk 0:01:06]} 96. Kf1 {[%clk 0:00:05]}  Kf3 {[%clk 0:01:07]} 97. Ke1 {[%clk 0:00:05]}  Kxf4 {[%clk 0:01:07]} 98. Rxe6 {[%clk 0:00:05]}  Kxg5 {[%clk 0:01:07]} 99. Rf6 {[%clk 0:00:05]}  Ra5 {[%clk 0:01:07]} 100. Rf2 {[%clk 0:00:05]}  Rxe5+ {[%clk 0:01:07]} 101. Re2 {[%clk 0:00:06]}  Rd5 {[%clk 0:01:07]} 102. Kf2 {[%clk 0:00:06]}  Rd4 {[%clk 0:01:07]} 103. Ke1 {[%clk 0:00:07]}  Kf4 {[%clk 0:01:08]} 104. Rf2+ {[%clk 0:00:08]}  Kg3 {[%clk 0:01:09]} 105. Re2 {[%clk 0:00:08]}  Rd3 {[%clk 0:01:09]} 106. Re8 {[%clk 0:00:08]}  Ra3 {[%clk 0:01:09]} 107. Rg8+ {[%clk 0:00:08]}  Kf4 {[%clk 0:01:09]} 108. Rf8+ {[%clk 0:00:09]}  Kg5 {[%clk 0:01:10]} 109. Rg8+ {[%clk 0:00:09]}  Kf6 {[%clk 0:01:11]} 110. Rf8+ {[%clk 0:00:10]}  Ke7 {[%clk 0:01:11]} 111. Rf5 {[%clk 0:00:10]}  Ra1+ {[%clk 0:01:12]} 112. Ke2 {[%clk 0:00:09]}  Ra3 {[%clk 0:01:13]} 113. Rb5 {[%clk 0:00:09]}  Kd6 {[%clk 0:01:13]} 114. Rb6+ {[%clk 0:00:09]}  Kc5 {[%clk 0:01:13]} 115. Re6 {[%clk 0:00:09]}  Kd4 {[%clk 0:01:13]} 116. Rd6+ {[%clk 0:00:09]}  Ke5 {[%clk 0:01:13]} 117. Rb6 {[%clk 0:00:10]}  Ra2+ {[%clk 0:01:14]} 118. Ke3 {[%clk 0:00:10]}  Ra3+ {[%clk 0:01:15]} 119. Ke2 {[%clk 0:00:10]}  Kd4 {[%clk 0:01:15]} 120. Rb4+ {[%clk 0:00:10]}  Kc5 {[%clk 0:01:16]} 121. Rb7 {[%clk 0:00:11]}  Kc6 {[%clk 0:01:15]} 122. Rb4 {[%clk 0:00:10]}  Kd6 {[%clk 0:01:16]} 123. Rg4 {[%clk 0:00:11]}  Ke5 {[%clk 0:01:16]} 124. Rb4 {[%clk 0:00:11]}  Kf5 {[%clk 0:01:17]} 125. Rh4 {[%clk 0:00:12]}  Ra2+ {[%clk 0:01:18]} 126. Kf3 {[%clk 0:00:11]}  Kg5 {[%clk 0:01:18]} 127. Rb4 {[%clk 0:00:10]}  Ra3+ {[%clk 0:01:19]} 128. Kf2 {[%clk 0:00:11]}  Kf5 {[%clk 0:01:19]} 129. Rb5+ {[%clk 0:00:11]}  Ke6 {[%clk 0:01:19]} 130. Rb4 {[%clk 0:00:12]}  Kd5 {[%clk 0:01:20]} 131. Rb5+ {[%clk 0:00:12]}  Kc4 {[%clk 0:01:20]} 132. Rf5 {[%clk 0:00:12]}  Kd4 {[%clk 0:01:21]} 133. Rf4+ {[%clk 0:00:12]}  Ke5 {[%clk 0:01:21]} 134. Rf3 {[%clk 0:00:13]}  Ra2+ {[%clk 0:01:21]} 135. Kg3 {[%clk 0:00:13]}  Ke4 {[%clk 0:01:22]} 136. Rf4+ {[%clk 0:00:14]}  Ke5 {[%clk 0:01:23]} 137. Rf3 {[%clk 0:00:14]}  Ra4 {[%clk 0:01:23]} 138. Re3+ {[%clk 0:00:14]}  Kf5 {[%clk 0:01:24]} 139. Rf3+ {[%clk 0:00:15]}  Kg5 {[%clk 0:01:24]} 140. Rc3 {[%clk 0:00:14]}  Rd4 {[%clk 0:01:25]} 141. Rc5+ {[%clk 0:00:14]}  Kf6 {[%clk 0:01:25]} 142. Rc3 {[%clk 0:00:15]}  Re4 {[%clk 0:01:26]} 143. Rf3+ {[%clk 0:00:15]}  Kg5 {[%clk 0:01:26]} 144. Rc3 {[%clk 0:00:15]}  Rg4+ {[%clk 0:01:27]} 145. Kh3 {[%clk 0:00:15]}  Ra4 {[%clk 0:01:27]} 146. Rc5+ {[%clk 0:00:15]}  Kf6 {[%clk 0:01:28]} 147. Rc3 {[%clk 0:00:15]}  Kf5 {[%clk 0:01:28]} 148. Kg3 {[%clk 0:00:15]}  Kg5 {[%clk 0:01:29]} 149. Kh3 {[%clk 0:00:16]}  Rh4+ {[%clk 0:01:28]} 150. Kg3 {[%clk 0:00:16]}  Rg4+ {[%clk 0:01:29]} 1/2-1/2


[Site "https://www.chess.com"]

[Event "Titled Tuesday Blitz April 18 Early 2023"]
[White "KorolDimitriy75"]
[Black "ryutherunner"]
[WhiteElo "2378"]
[BlackElo "2125"]
[Result "1-0"]
[Round "07"]
[TimeControl "180+2"]
[Date "2023.04.18"]
[WhiteClock "0:01:55"]
[BlackClock "0:01:52"]

1. d4 {[%clk 0:03:00]}  c5 {[%clk 0:02:58]} 2. d5 {[%clk 0:03:00]}  Nf6 {[%clk 0:02:56]} 3. c4 {[%clk 0:03:00]}  e6 {[%clk 0:02:53]} 4. Nc3 {[%clk 0:03:01]}  d6 {[%clk 0:02:53]} 5. Nf3 {[%clk 0:03:00]}  Be7 {[%clk 0:02:53]} 6. e4 {[%clk 0:02:57]}  e5 {[%clk 0:02:54]} 7. Be2 {[%clk 0:02:54]}  O-O {[%clk 0:02:52]} 8. O-O {[%clk 0:02:54]}  g6 {[%clk 0:02:52]} 9. Ne1 {[%clk 0:02:48]}  Kg7 {[%clk 0:02:50]} 10. Nd3 {[%clk 0:02:47]}  Ne8 {[%clk 0:02:49]} 11. f4 {[%clk 0:02:46]}  Bf6 {[%clk 0:02:45]} 12. fxe5 {[%clk 0:02:44]}  Bxe5 {[%clk 0:02:46]} 13. Nxe5 {[%clk 0:02:43]}  dxe5 {[%clk 0:02:47]} 14. Be3 {[%clk 0:02:41]}  b6 {[%clk 0:02:45]} 15. Qd2 {[%clk 0:02:40]}  Kh8 {[%clk 0:02:12]} 16. Bh6 {[%clk 0:02:33]}  Rg8 {[%clk 0:02:12]} 17. Rxf7 {[%clk 0:02:31]}  Nd6 {[%clk 0:02:13]} 18. Bg5 {[%clk 0:02:07]}  Nxf7 {[%clk 0:01:51]} 19. Bxd8 {[%clk 0:02:06]}  Rxd8 {[%clk 0:01:51]} 20. Rf1 {[%clk 0:02:02]}  Nd6 {[%clk 0:01:52]} 21. Qg5 {[%clk 0:01:55]} 1-0


[Site "https://www.chess.com"]

[Event "Titled Tuesday Blitz April 18 Early 2023"]
[White "Szente Varga, Fruzsina"]
[Black "Sandholm, Klas"]
[WhiteFideId "712264"]
[BlackFideId "510203"]
[WhiteElo "1994"]
[BlackElo "2110"]
[Result "1-0"]
[Round "07"]
[TimeControl "180+2"]
[Date "2023.04.18"]
[WhiteClock "0:00:23"]
[BlackClock "0:01:08"]

1. e4 {[%clk 0:03:00]}  e5 {[%clk 0:02:59]} 2. d4 {[%clk 0:03:00]}  exd4 {[%clk 0:02:58]} 3. Qxd4 {[%clk 0:03:01]}  Nf6 {[%clk 0:02:57]} 4. Nc3 {[%clk 0:03:00]}  b6 {[%clk 0:02:57]} 5. Qe3 {[%clk 0:02:54]}  Bc5 {[%clk 0:02:56]} 6. Qg3 {[%clk 0:02:54]}  O-O {[%clk 0:02:55]} 7. Bd2 {[%clk 0:02:52]}  Re8 {[%clk 0:02:54]} 8. O-O-O {[%clk 0:02:38]}  Nxe4 {[%clk 0:02:49]} 9. Nxe4 {[%clk 0:02:39]}  Rxe4 {[%clk 0:02:49]} 10. Bd3 {[%clk 0:02:39]}  Re8 {[%clk 0:02:48]} 11. Bc3 {[%clk 0:02:38]}  Bf8 {[%clk 0:02:42]} 12. Nf3 {[%clk 0:02:23]}  Bb7 {[%clk 0:02:36]} 13. Bxh7+ {[%clk 0:01:19]}  Kxh7 {[%clk 0:02:35]} 14. Ng5+ {[%clk 0:01:19]}  Kg8 {[%clk 0:02:23]} 15. Qh4 {[%clk 0:01:19]}  Qxg5+ {[%clk 0:02:08]} 16. Qxg5 {[%clk 0:01:18]}  d5 {[%clk 0:02:09]} 17. h4 {[%clk 0:01:15]}  c5 {[%clk 0:02:09]} 18. Bf6 {[%clk 0:01:13]}  Nd7 {[%clk 0:02:08]} 19. Bc3 {[%clk 0:01:11]}  d4 {[%clk 0:02:07]} 20. Bd2 {[%clk 0:01:11]}  Re5 {[%clk 0:02:03]} 21. Qg3 {[%clk 0:01:11]}  Rae8 {[%clk 0:02:01]} 22. h5 {[%clk 0:01:10]}  Kh7 {[%clk 0:01:57]} 23. h6 {[%clk 0:01:10]}  g6 {[%clk 0:01:57]} 24. f4 {[%clk 0:01:10]}  Rf5 {[%clk 0:01:52]} 25. Rde1 {[%clk 0:01:07]}  Rxe1+ {[%clk 0:01:44]} 26. Rxe1 {[%clk 0:01:08]}  Nf6 {[%clk 0:01:45]} 27. Qh3 {[%clk 0:01:03]}  Rh5 {[%clk 0:01:43]} 28. Qb3 {[%clk 0:01:01]}  Bd5 {[%clk 0:01:40]} 29. Qa4 {[%clk 0:01:01]}  Bxh6 {[%clk 0:01:34]} 30. Qxa7 {[%clk 0:01:01]}  Rh2 {[%clk 0:01:33]} 31. Qe7 {[%clk 0:00:47]}  Kg7 {[%clk 0:01:30]} 32. Rg1 {[%clk 0:00:32]}  Ne4 {[%clk 0:01:22]} 33. Qe5+ {[%clk 0:00:30]}  Nf6 {[%clk 0:01:22]} 34. f5 {[%clk 0:00:30]}  Bxd2+ {[%clk 0:01:15]} 35. Kxd2 {[%clk 0:00:31]}  Bxg2 {[%clk 0:01:08]} 36. Qxh2 {[%clk 0:00:23]} 1-0


[Site "https://www.chess.com"]

[Event "Titled Tuesday Blitz April 18 Early 2023"]
[White "Chincholimath, Halsagar"]
[Black "Jiganchine, Roman"]
[WhiteFideId "5022487"]
[BlackFideId "2603667"]
[WhiteElo "1737"]
[BlackElo "2254"]
[Result "0-1"]
[Round "07"]
[TimeControl "180+2"]
[Date "2023.04.18"]
[WhiteClock "0:00:31"]
[BlackClock "0:00:17"]

1. e4 {[%clk 0:03:00]}  c6 {[%clk 0:02:51]} 2. d4 {[%clk 0:02:56]}  d5 {[%clk 0:02:51]} 3. exd5 {[%clk 0:02:55]}  cxd5 {[%clk 0:02:51]} 4. Bd3 {[%clk 0:02:56]}  Nc6 {[%clk 0:02:51]} 5. c3 {[%clk 0:02:56]}  Qc7 {[%clk 0:02:50]} 6. h3 {[%clk 0:02:55]}  g6 {[%clk 0:02:48]} 7. Nf3 {[%clk 0:02:55]}  Bf5 {[%clk 0:02:47]} 8. O-O {[%clk 0:02:52]}  Bxd3 {[%clk 0:02:45]} 9. Qxd3 {[%clk 0:02:53]}  Bg7 {[%clk 0:02:46]} 10. Bg5 {[%clk 0:02:51]}  e6 {[%clk 0:02:45]} 11. Nbd2 {[%clk 0:02:50]}  Nge7 {[%clk 0:02:39]} 12. Bh4 {[%clk 0:02:40]}  O-O {[%clk 0:02:38]} 13. Rae1 {[%clk 0:02:37]}  Nf5 {[%clk 0:02:36]} 14. Bg5 {[%clk 0:02:30]}  h6 {[%clk 0:02:18]} 15. Be3 {[%clk 0:02:28]}  b5 {[%clk 0:02:17]} 16. Nb3 {[%clk 0:02:10]}  b4 {[%clk 0:02:08]} 17. Bc1 {[%clk 0:02:09]}  a5 {[%clk 0:02:02]} 18. Nc5 {[%clk 0:02:01]}  Rfe8 {[%clk 0:01:55]} 19. g4 {[%clk 0:02:01]}  Nd6 {[%clk 0:01:51]} 20. Bf4 {[%clk 0:01:59]}  Qd8 {[%clk 0:01:43]} 21. Ne5 {[%clk 0:01:42]}  Nxe5 {[%clk 0:01:35]} 22. Bxe5 {[%clk 0:01:41]}  Nc4 {[%clk 0:01:34]} 23. Bxg7 {[%clk 0:01:36]}  Kxg7 {[%clk 0:01:34]} 24. b3 {[%clk 0:01:36]}  Nd6 {[%clk 0:01:31]} 25. c4 {[%clk 0:01:28]}  dxc4 {[%clk 0:01:04]} 26. bxc4 {[%clk 0:01:24]}  Kg8 {[%clk 0:00:56]} 27. Qf3 {[%clk 0:01:18]}  Nxc4 {[%clk 0:00:50]} 28. Ne4 {[%clk 0:01:18]}  Kg7 {[%clk 0:00:43]} 29. Qf4 {[%clk 0:01:05]}  g5 {[%clk 0:00:28]} 30. Qg3 {[%clk 0:00:57]}  Qb8 {[%clk 0:00:24]} 31. Qd3 {[%clk 0:00:55]}  Nb6 {[%clk 0:00:22]} 32. Nc5 {[%clk 0:00:47]}  Nd5 {[%clk 0:00:22]} 33. Qe4 {[%clk 0:00:42]}  Qf4 {[%clk 0:00:20]} 34. Qe2 {[%clk 0:00:41]}  Rad8 {[%clk 0:00:19]} 35. Qc4 {[%clk 0:00:38]}  Nf6 {[%clk 0:00:18]} 36. Rd1 {[%clk 0:00:36]}  h5 {[%clk 0:00:16]} 37. f3 {[%clk 0:00:33]}  Qg3+ {[%clk 0:00:15]} 38. Kh1 {[%clk 0:00:32]}  Qxh3+ {[%clk 0:00:16]} 39. Kg1 {[%clk 0:00:31]}  Qg3+ {[%clk 0:00:17]} 40. Kh1 {[%clk 0:00:31]}  hxg4 {[%clk 0:00:17]} 41. fxg4 {[%clk 0:00:31]}  Rh8# {[%clk 0:00:17]} 0-1


[Site "https://www.chess.com"]

[Event "Titled Tuesday Blitz April 18 Early 2023"]
[White "Osiecki, Stanislaw"]
[Black "Clawitter, Craig"]
[WhiteFideId "1102990"]
[BlackFideId "2023105"]
[WhiteElo "2088"]
[BlackElo "2245"]
[Result "1-0"]
[Round "07"]
[TimeControl "180+2"]
[Date "2023.04.18"]
[WhiteClock "0:00:09"]
[BlackClock "0:00:06"]

1. e4 {[%clk 0:02:59]}  e6 {[%clk 0:02:49]} 2. d4 {[%clk 0:02:56]}  d5 {[%clk 0:02:49]} 3. e5 {[%clk 0:02:57]}  c5 {[%clk 0:02:49]} 4. c3 {[%clk 0:02:56]}  Qb6 {[%clk 0:02:50]} 5. Nf3 {[%clk 0:02:55]}  Nc6 {[%clk 0:02:50]} 6. Bd3 {[%clk 0:02:53]}  cxd4 {[%clk 0:02:50]} 7. cxd4 {[%clk 0:02:53]}  Bd7 {[%clk 0:02:50]} 8. Be2 {[%clk 0:02:52]}  Nh6 {[%clk 0:02:49]} 9. Nc3 {[%clk 0:02:52]}  Nf5 {[%clk 0:02:49]} 10. Na4 {[%clk 0:02:52]}  Qa5+ {[%clk 0:02:46]} 11. Nc3 {[%clk 0:02:45]}  Bb4 {[%clk 0:02:35]} 12. Qd3 {[%clk 0:02:36]}  Qb6 {[%clk 0:02:19]} 13. a3 {[%clk 0:02:33]}  Be7 {[%clk 0:01:55]} 14. Be3 {[%clk 0:02:16]}  Qxb2 {[%clk 0:01:40]} 15. O-O {[%clk 0:02:16]}  Qb6 {[%clk 0:01:27]} 16. Rfb1 {[%clk 0:02:04]}  Qc7 {[%clk 0:01:26]} 17. Nb5 {[%clk 0:02:04]}  Qd8 {[%clk 0:01:24]} 18. g4 {[%clk 0:02:04]}  Nxe3 {[%clk 0:01:18]} 19. Qxe3 {[%clk 0:02:00]}  O-O {[%clk 0:01:18]} 20. Bd3 {[%clk 0:01:59]}  f6 {[%clk 0:01:14]} 21. exf6 {[%clk 0:01:55]}  Bxf6 {[%clk 0:01:06]} 22. Kh1 {[%clk 0:01:46]}  Na5 {[%clk 0:00:37]} 23. g5 {[%clk 0:01:07]}  Be7 {[%clk 0:00:36]} 24. Nc3 {[%clk 0:01:06]}  Rc8 {[%clk 0:00:35]} 25. Ne2 {[%clk 0:01:04]}  Nc4 {[%clk 0:00:33]} 26. Bxc4 {[%clk 0:01:04]}  Rxc4 {[%clk 0:00:34]} 27. Ne5 {[%clk 0:01:00]}  Rc7 {[%clk 0:00:29]} 28. h4 {[%clk 0:00:51]}  Bd6 {[%clk 0:00:29]} 29. Nxd7 {[%clk 0:00:47]}  Qxd7 {[%clk 0:00:29]} 30. f4 {[%clk 0:00:47]}  Qf7 {[%clk 0:00:27]} 31. Rf1 {[%clk 0:00:46]}  Re7 {[%clk 0:00:27]} 32. a4 {[%clk 0:00:39]}  Qh5 {[%clk 0:00:27]} 33. Qf2 {[%clk 0:00:34]}  e5 {[%clk 0:00:23]} 34. dxe5 {[%clk 0:00:32]}  Bxe5 {[%clk 0:00:23]} 35. Rad1 {[%clk 0:00:31]}  d4 {[%clk 0:00:15]} 36. Nxd4 {[%clk 0:00:20]}  Bxd4 {[%clk 0:00:15]} 37. Rxd4 {[%clk 0:00:16]}  Re2 {[%clk 0:00:15]} 38. Qg3 {[%clk 0:00:16]}  Rc8 {[%clk 0:00:13]} 39. Qb3+ {[%clk 0:00:15]}  Kh8 {[%clk 0:00:12]} 40. Qg3 {[%clk 0:00:15]}  h6 {[%clk 0:00:10]} 41. g6 {[%clk 0:00:14]}  Qf5 {[%clk 0:00:09]} 42. Rfd1 {[%clk 0:00:13]}  Ree8 {[%clk 0:00:09]} 43. Qd3 {[%clk 0:00:10]}  Qxf4 {[%clk 0:00:06]} 44. Rxf4 {[%clk 0:00:09]} 1-0


[Site "https://www.chess.com"]

[Event "Titled Tuesday Blitz April 18 Early 2023"]
[White "Quirke, Jeffrey"]
[Black "Mihajlovskij"]
[WhiteFideId "2013029"]
[WhiteElo "2239"]
[BlackElo "1924"]
[Result "1/2-1/2"]
[Round "07"]
[TimeControl "180+2"]
[Date "2023.04.18"]
[WhiteClock "0:00:05"]
[BlackClock "0:00:21"]

1. e4 {[%clk 0:02:56]}  d5 {[%clk 0:03:00]} 2. exd5 {[%clk 0:02:50]}  Qxd5 {[%clk 0:03:01]} 3. Nc3 {[%clk 0:02:44]}  Qe5+ {[%clk 0:03:01]} 4. Be2 {[%clk 0:02:42]}  Bg4 {[%clk 0:03:00]} 5. d4 {[%clk 0:02:37]}  Bxe2 {[%clk 0:02:59]} 6. Qxe2 {[%clk 0:02:34]}  Qxe2+ {[%clk 0:02:57]} 7. Kxe2 {[%clk 0:02:29]}  c6 {[%clk 0:02:56]} 8. Nf3 {[%clk 0:02:29]}  Nf6 {[%clk 0:02:56]} 9. Bf4 {[%clk 0:02:23]}  Nbd7 {[%clk 0:02:55]} 10. h3 {[%clk 0:02:18]}  e6 {[%clk 0:02:55]} 11. Rhe1 {[%clk 0:02:16]}  O-O-O {[%clk 0:02:55]} 12. Rad1 {[%clk 0:02:09]}  h6 {[%clk 0:02:53]} 13. Nb1 {[%clk 0:02:03]}  g5 {[%clk 0:02:36]} 14. Bh2 {[%clk 0:02:03]}  Bg7 {[%clk 0:02:36]} 15. c3 {[%clk 0:02:02]}  Nd5 {[%clk 0:02:34]} 16. Kf1 {[%clk 0:02:00]}  N7b6 {[%clk 0:02:33]} 17. Nbd2 {[%clk 0:01:59]}  Rhe8 {[%clk 0:02:30]} 18. Ne4 {[%clk 0:01:57]}  Nc4 {[%clk 0:02:22]} 19. Re2 {[%clk 0:01:56]}  b6 {[%clk 0:02:17]} 20. Ne1 {[%clk 0:01:49]}  f5 {[%clk 0:02:11]} 21. Ng3 {[%clk 0:01:31]}  Nf4 {[%clk 0:02:05]} 22. Rc2 {[%clk 0:01:31]}  c5 {[%clk 0:02:02]} 23. Ne2 {[%clk 0:01:05]}  Nxe2 {[%clk 0:02:01]} 24. Kxe2 {[%clk 0:01:05]}  Kb7 {[%clk 0:01:48]} 25. dxc5 {[%clk 0:01:04]}  bxc5 {[%clk 0:01:48]} 26. b3 {[%clk 0:00:42]}  Nb6 {[%clk 0:01:42]} 27. c4 {[%clk 0:00:36]}  Bd4 {[%clk 0:01:35]} 28. Nf3 {[%clk 0:00:34]}  e5 {[%clk 0:01:34]} 29. Nxd4 {[%clk 0:00:29]}  exd4+ {[%clk 0:01:33]} 30. Kf1 {[%clk 0:00:28]}  a5 {[%clk 0:01:32]} 31. Re2 {[%clk 0:00:27]}  Rxe2 {[%clk 0:01:31]} 32. Kxe2 {[%clk 0:00:27]}  Re8+ {[%clk 0:01:32]} 33. Kd3 {[%clk 0:00:26]}  Kc6 {[%clk 0:01:32]} 34. f4 {[%clk 0:00:23]}  Nc8 {[%clk 0:01:18]} 35. fxg5 {[%clk 0:00:19]}  hxg5 {[%clk 0:01:18]} 36. Rd2 {[%clk 0:00:19]}  Re3+ {[%clk 0:01:09]} 37. Kc2 {[%clk 0:00:19]}  f4 {[%clk 0:01:04]} 38. h4 {[%clk 0:00:18]}  Rc3+ {[%clk 0:00:52]} 39. Kb2 {[%clk 0:00:17]}  gxh4 {[%clk 0:00:53]} 40. Bxf4 {[%clk 0:00:17]}  a4 {[%clk 0:00:52]} 41. Re2 {[%clk 0:00:09]}  axb3 {[%clk 0:00:45]} 42. axb3 {[%clk 0:00:08]}  Kd7 {[%clk 0:00:42]} 43. Bg5 {[%clk 0:00:07]}  Nd6 {[%clk 0:00:41]} 44. Bxh4 {[%clk 0:00:06]}  Nf5 {[%clk 0:00:40]} 45. Bf2 {[%clk 0:00:05]}  Rd3 {[%clk 0:00:28]} 46. Kc2 {[%clk 0:00:04]}  Rc3+ {[%clk 0:00:26]} 47. Kb2 {[%clk 0:00:04]}  Rd3 {[%clk 0:00:21]} 48. Kc2 {[%clk 0:00:05]}  Rc3+ {[%clk 0:00:21]} 49. Kb2 {[%clk 0:00:05]} 1/2-1/2


[Site "https://www.chess.com"]

[Event "Titled Tuesday Blitz April 18 Early 2023"]
[White "Prado, Alexandra"]
[Black "Kuchava, Ana"]
[WhiteFideId "3301346"]
[BlackFideId "13605348"]
[WhiteElo "1759"]
[BlackElo "2001"]
[Result "0-1"]
[Round "07"]
[TimeControl "180+2"]
[Date "2023.04.18"]
[WhiteClock "0:00:12"]
[BlackClock "0:00:51"]

1. e4 {[%clk 0:02:59]}  c5 {[%clk 0:02:59]} 2. Nc3 {[%clk 0:02:57]}  Nc6 {[%clk 0:02:56]} 3. g3 {[%clk 0:02:55]}  g6 {[%clk 0:02:49]} 4. Bg2 {[%clk 0:02:54]}  Bg7 {[%clk 0:02:48]} 5. d3 {[%clk 0:02:54]}  d6 {[%clk 0:02:44]} 6. Nf3 {[%clk 0:02:41]}  e6 {[%clk 0:02:21]} 7. O-O {[%clk 0:02:40]}  Nge7 {[%clk 0:02:20]} 8. Be3 {[%clk 0:02:38]}  Nd4 {[%clk 0:02:18]} 9. Qd2 {[%clk 0:02:32]}  O-O {[%clk 0:02:16]} 10. Nd1 {[%clk 0:02:06]}  a6 {[%clk 0:02:11]} 11. c3 {[%clk 0:02:06]}  Nxf3+ {[%clk 0:02:11]} 12. Bxf3 {[%clk 0:02:05]}  Rb8 {[%clk 0:02:11]} 13. Bh6 {[%clk 0:01:50]}  b5 {[%clk 0:02:09]} 14. Bxg7 {[%clk 0:01:39]}  Kxg7 {[%clk 0:02:09]} 15. a3 {[%clk 0:01:36]}  Bb7 {[%clk 0:02:01]} 16. Ne3 {[%clk 0:01:35]}  d5 {[%clk 0:01:57]} 17. Ng4 {[%clk 0:01:12]}  Ng8 {[%clk 0:01:41]} 18. e5 {[%clk 0:00:42]}  h5 {[%clk 0:01:27]} 19. Ne3 {[%clk 0:00:42]}  d4 {[%clk 0:01:26]} 20. Bxb7 {[%clk 0:00:39]}  dxe3 {[%clk 0:01:25]} 21. Qxe3 {[%clk 0:00:34]}  Rxb7 {[%clk 0:01:24]} 22. Qxc5 {[%clk 0:00:31]}  Qxd3 {[%clk 0:01:19]} 23. Rad1 {[%clk 0:00:20]}  Qc4 {[%clk 0:01:16]} 24. Qe3 {[%clk 0:00:18]}  Ne7 {[%clk 0:01:10]} 25. Rd4 {[%clk 0:00:18]}  Nf5 {[%clk 0:00:55]} 26. Qg5 {[%clk 0:00:12]}  Nxd4 {[%clk 0:00:54]} 27. Qf6+ {[%clk 0:00:12]}  Kg8 {[%clk 0:00:53]} 28. cxd4 {[%clk 0:00:12]}  Qxd4 {[%clk 0:00:51]} 0-1


[Site "https://www.chess.com"]